[Event "55th Biel Festival GMT Classical 2022"]
[Site "Biel"]
[Date "2022.07.15"]
[Round "2.1"]
[White "Gukesh D"]
[Black "Naiditsch, Arkadij"]
[Result "1/2-1/2"]
[ECO "E14"]
[WhiteElo "2684"]
[BlackElo "2664"]
[Annotator "ChessBase"]
[PlyCount "38"]
[EventDate "2022.07.14"]
[EventType "tourn"]
[EventCountry "SUI"]
[SourceTitle "playchess.com"]
[Source "ChessBase"]
[SourceQuality "1"]
[TimeControl "40/6000+30:20/3000+30:900+30"]

1. d4 {[%emt 0:01:01]} Nf6 {[%emt 0:00:08]} 2. c4 {[%emt 0:00:46]} e6 {[%emt 0:00:11]} 3. Nf3 {[%emt 0:01:17]} Bb4+ {[%emt 0:00:39]} 4. Nbd2 {[%emt 0:01:27]} b6 {[%emt 0:01:10]} 5. a3 {[%emt 0:01:00]} Bxd2+ {[%emt 0:01:38]} 6. Qxd2 {[%emt 0:00:07]} Bb7 {[%emt 0:00:27]} 7. e3 {[%emt 0:01:24]} O-O {[%emt 0:00:11]} 8. b4 {[%emt 0:00:09]} a5 {[%emt 0:03:20]} 9. Bb2 {[%emt 0:05:02]} axb4 {[%emt 0:03:59]} 10. axb4 {[%emt 0:00:07]} Ne4 {[%emt 0:00:10]} 11. Qc1 {[%emt 0:17:19]} Rxa1 {[%emt 0:13:32]} 12. Bxa1 {[%emt 0:04:16]} Qe7 {[%emt 0:16:22]} 13. b5 {[%emt 0:13:31]} Qb4+ {[%emt 0:07:41]} 14. Nd2 {[%emt 0:00:12]} Nxd2 {[%emt 0:08:59]} 15. Qxd2 {[%emt 0:00:23]} Qb1+ {[%emt 0:00:13]} 16. Qd1 {[%emt 0:00:02]} Qb4+ {[%emt 0:00:28]} 17. Qd2 {[%emt 0:00:10]} Qb1+ {[%emt 0:00:08]} 18. Qd1 {[%emt 0:00:03]} Qb4+ {[%emt 0:00:33]} 19. Qd2 {[%emt 0:00:19]} Qb1+ {[%emt 0:00:05]} 1/2-1/2

[Event "55th Biel Festival GMT Classical 2022"]
[Site "Biel"]
[Date "2022.07.15"]
[Round "2.2"]
[White "Esipenko, Andrey"]
[Black "Salem, A.R. Saleh"]
[Result "1/2-1/2"]
[ECO "C84"]
[WhiteElo "2682"]
[BlackElo "2684"]
[Annotator "ChessBase"]
[PlyCount "61"]
[EventDate "2022.07.14"]
[EventType "tourn"]
[EventCountry "SUI"]
[SourceTitle "playchess.com"]
[Source "ChessBase"]
[SourceQuality "1"]
[TimeControl "40/6000+30:20/3000+30:900+30"]

1. e4 {[%emt 0:00:04]} e5 {[%emt 0:00:05]} 2. Nf3 {[%emt 0:00:14]} Nc6 {[%emt 0:00:05]} 3. Bb5 {[%emt 0:00:11]} a6 {[%emt 0:00:07]} 4. Ba4 {[%emt 0:00:07]} Nf6 {[%emt 0:00:05]} 5. O-O {[%emt 0:00:15]} Be7 {[%emt 0:00:06]} 6. d3 {[%emt 0:00:15]} b5 {[%emt 0:00:14]} 7. Bb3 {[%emt 0:00:06]} O-O {[%emt 0:00:06]} 8. a4 {[%emt 0:00:39]} Bb7 {[%emt 0:00:06]} 9. Nc3 {[%emt 0:00:49]} Na5 {[%emt 0:00:53]} 10. Bd5 {[%emt 0:00:27]} c6 {[%emt 0:07:28]} 11. Ba2 {[%emt 0:00:15]} Qc7 {[%emt 0:02:48]} 12. Bg5 {[%emt 0:12:53]} b4 {[%emt 0:02:02]} 13. Nb1 {[%emt 0:01:47]} d5 {[%emt 0:05:28]} 14. Nbd2 {[%emt 0:00:45]} Rad8 {[%emt 0:00:35]} 15. Re1 {[%emt 0:05:59]} d4 {[%emt 0:11:01]} 16. Nc4 {[%emt 0:17:44]} Nxc4 {[%emt 0:00:48]} 17. Bxc4 {[%emt 0:00:06]} a5 {[%emt 0:02:09]} 18. Nd2 {[%emt 0:11:50]} h6 {[%emt 0:05:22]} 19. Bh4 {[%emt 0:10:38]} g6 {[%emt 0:00:44]} 20. Bb3 {[%emt 0:07:15]} Kg7 {[%emt 0:01:14]} 21. Rf1 {[%emt 0:07:30]} Ba6 {[%emt 0:02:34]} 22. Kh1 {[%emt 0:03:46]} Rh8 {[%emt 0:08:02]} 23. Qe2 {[%emt 0:05:23]} Rde8 {[%emt 0:09:54]} 24. Rae1 {[%emt 0:10:09]} Bc8 {[%emt 0:08:49]} 25. Nc4 {[%emt 0:01:46]} Be6 {[%emt 0:06:29]} 26. Nd2 {[%emt 0:01:02]} Bc8 {[%emt 0:00:10]} 27. Nc4 {[%emt 0:00:10]} Be6 {[%emt 0:13:58]} 28. Nd2 {[%emt 0:00:14]} Bc8 {[%emt 0:00:39]} 29. Nc4 {[%emt 0:01:08]} g5 {[%emt 0:00:10]} 30. Bg3 Bd8 31. Bh4 {[%emt 0:00:20]} 1/2-1/2

[Event "55th Biel Festival GMT Classical 2022"]
[Site "Biel"]
[Date "2022.07.15"]
[Round "2.3"]
[White "Kamsky, Gata"]
[Black "Keymer, Vincent"]
[Result "1/2-1/2"]
[ECO "B23"]
[WhiteElo "2655"]
[BlackElo "2686"]
[Annotator "ChessBase"]
[PlyCount "48"]
[EventDate "2022.07.14"]
[EventType "tourn"]
[EventCountry "SUI"]
[SourceTitle "playchess.com"]
[Source "ChessBase"]
[SourceQuality "1"]
[TimeControl "40/6000+30:20/3000+30:900+30"]

1. e4 {[%emt 0:00:34]} c5 {[%emt 0:00:11]} 2. Nc3 {[%emt 0:03:11]} d6 {[%emt 0:00:31]} 3. Bc4 {[%emt 0:03:13]} Nf6 {[%emt 0:08:55]} 4. d3 {[%emt 0:00:44]} a6 {[%emt 0:02:02]} 5. a3 {[%emt 0:00:16]} e6 {[%emt 0:04:42]} 6. Ba2 {[%emt 0:00:20]} Be7 {[%emt 0:08:27]} 7. f4 {[%emt 0:04:15]} Nc6 {[%emt 0:08:20]} 8. Nf3 {[%emt 0:00:19]} O-O {[%emt 0:02:13]} 9. O-O {[%emt 0:00:12]} b5 {[%emt 0:04:05]} 10. Qe1 {[%emt 0:01:16]} Bb7 {[%emt 0:08:30]} 11. Kh1 {[%emt 0:13:47]} Rc8 {[%emt 0:08:02]} 12. Qg3 {[%emt 0:04:16]} c4 {[%emt 0:05:28]} 13. e5 {[%emt 0:05:28]} Nd7 {[%emt 0:03:58]} 14. Ne4 {[%emt 0:16:08]} d5 {[%emt 0:01:40]} 15. Neg5 {[%emt 0:00:41]} h6 {[%emt 0:06:15]} 16. Nh3 {[%emt 0:00:15]} f5 {[%emt 0:02:24]} 17. exf6 {[%emt 0:01:44]} Nxf6 {[%emt 0:00:33]} 18. Bd2 {[%emt 0:03:50]} Bd6 {[%emt 0:08:47]} 19. Rae1 {[%emt 0:08:17]} Ne7 {[%emt 0:00:57]} 20. Rxe6 {[%emt 0:03:07]} Nf5 {[%emt 0:00:28]} 21. Qg6 {[%emt 0:01:51]} Ne7 {[%emt 0:00:42]} 22. Qg3 {[%emt 0:00:05]} Nf5 {[%emt 0:02:40]} 23. Qg6 {[%emt 0:00:05]} Ne7 {[%emt 0:00:08]} 24. Qg3 {[%emt 0:00:04]} Nf5 {[%emt 0:00:46]} 1/2-1/2

[Event "55th Biel Festival GMT Classical 2022"]
[Site "Biel"]
[Date "2022.07.15"]
[Round "2.4"]
[White "Abdusattorov, Nodirbek"]
[Black "Le, Quang Liem"]
[Result "0-1"]
[ECO "C50"]
[WhiteElo "2688"]
[BlackElo "2722"]
[Annotator "ChessBase"]
[PlyCount "92"]
[EventDate "2022.07.14"]
[EventType "tourn"]
[EventCountry "SUI"]
[SourceTitle "playchess.com"]
[Source "ChessBase"]
[SourceQuality "1"]
[TimeControl "40/6000+30:20/3000+30:900+30"]

1. e4 {[%emt 0:00:15]} e5 {[%emt 0:00:09]} 2. Nf3 {[%emt 0:00:10]} Nc6 {[%emt 0:00:09]} 3. Bc4 {[%emt 0:00:06]} Nf6 {[%emt 0:00:26]} 4. d3 {[%emt 0:00:12]} Bc5 {[%emt 0:00:10]} 5. Nc3 {[%emt 0:00:15]} h6 {[%emt 0:00:21]} 6. O-O {[%emt 0:00:21]} a6 {[%emt 0:00:13]} 7. a4 {[%emt 0:01:02]} d6 {[%emt 0:00:16]} 8. Be3 {[%emt 0:00:09]} O-O {[%emt 0:00:24]} 9. Bxc5 {[%emt 0:03:23]} dxc5 {[%emt 0:00:10]} 10. h3 {[%emt 0:01:16]} Re8 {[%emt 0:02:16]} 11. Nd2 {[%emt 0:00:55]} b6 {[%emt 0:04:49]} 12. Ne2 {[%emt 0:04:21]} Be6 {[%emt 0:05:22]} 13. Ng3 {[%emt 0:08:01]} Qd7 {[%emt 0:10:47]} 14. Bxe6 {[%emt 0:00:30]} Qxe6 {[%emt 0:01:07]} 15. Nc4 {[%emt 0:11:06]} Rad8 {[%emt 0:00:38]} 16. b3 {[%emt 0:02:27]} Ne7 {[%emt 0:10:45]} 17. Qf3 {[%emt 0:07:22]} Nh7 {[%emt 0:15:39]} 18. Qh5 {[%emt 0:05:45]} Ng6 {[%emt 0:02:50]} 19. Nf5 {[%emt 0:00:23]} Nf4 {[%emt 0:01:01]} 20. Qg4 {[%emt 0:10:58]} Qf6 {[%emt 0:00:09]} 21. Kh2 {[%emt 0:09:21]} h5 {[%emt 0:02:33]} 22. Qh4 {[%emt 0:00:03]} Qe6 {[%emt 0:13:49]} 23. f3 {[%emt 0:00:53]} g6 {[%emt 0:01:41]} 24. Nfe3 {[%emt 0:00:02]} b5 {[%emt 0:03:13]} 25. Nd2 {[%emt 0:01:08]} Qd6 {[%emt 0:00:59]} 26. Qf2 {[%emt 0:03:16]} Ne6 {[%emt 0:01:36]} 27. g3 {[%emt 0:02:52]} h4 {[%emt 0:02:44]} 28. gxh4 {[%emt 0:03:48]} Nf6 {[%emt 0:00:41]} 29. Rg1 {[%emt 0:00:04]} Kh7 {[%emt 0:00:49]} 30. Ndf1 {[%emt 0:04:41]} Nh5 {[%emt 0:08:02]} 31. Ng3 {[%emt 0:02:44]} Nhf4 {[%emt 0:00:14]} 32. h5 {[%emt 0:00:52]} Nd4 {[%emt 0:00:18]} 33. hxg6+ {[%emt 0:00:50]} fxg6 {[%emt 0:00:11]} 34. axb5 {[%emt 0:01:49]} axb5 {[%emt 0:00:16]} 35. Ngf1 {[%emt 0:14:09]} Rf8 {[%emt 0:02:57]} 36. Rg4 {[%emt 0:01:35]} Nh5 {[%emt 0:08:22]} 37. Nf5 {[%emt 0:06:51]} gxf5 {[%emt 0:03:18]} 38. Rh4 {[%emt 0:00:01]} Qg6 {[%emt 0:00:39]} 39. Ng3 {[%emt 0:02:49]} fxe4 {[%emt 0:00:08]} 40. Nxh5 {[%emt 0:00:13]} Nxf3+ {[%emt 0:01:02]} 41. Kh1 {[%emt 0:50:00]} Qh6 {[%emt 0:17:55]} 42. Nf6+ {[%emt 0:00:00]} Rxf6 {[%emt 0:00:09]} 43. Rxh6+ {[%emt 0:00:00]} Rxh6 {[%emt 0:00:13]} 44. dxe4 {[%emt 0:00:00]} Rxh3+ {[%emt 0:00:14]} 45. Kg2 {[%emt 0:00:00]} Rh2+ {[%emt 0:00:06]} 46. Kxf3 {[%emt 0:00:00]} Rf8+ {[%emt 0:00:07]} 0-1

[Event "55th Biel Festival GMT Classical 2022"]
[Site "Biel"]
[Date "2022.07.19"]
[Round "4.1"]
[White "Gukesh D"]
[Black "Esipenko, Andrey"]
[Result "0-1"]
[ECO "D41"]
[WhiteElo "2684"]
[BlackElo "2682"]
[Annotator "TA"]
[PlyCount "88"]
[EventDate "2022.07.14"]
[EventType "tourn"]
[EventCountry "SUI"]
[SourceTitle "playchess.com"]
[Source "ChessBase"]
[SourceQuality "1"]
[TimeControl "40/6000+30:20/3000+30:900+30"]

{[%evp 19,88,13,15,0,0,0,0,0,0,0,0,0,20,0,15,0,0,0,18,23,60,60,70,54,41,33,51,50,22,33,42,13,16,14,0,0,25,0,0,0,0,0,0,0,0,-25,-14,-32,-37,-78,-78,-117,-47,-164,-86,-102,-45,-387,-187,-358,-356,-345,-293,-603,-613,-822,-801,-816,-801,-791,-785]} 1. d4 {[%emt 0:00:46]} Nf6 {[%emt 0:00:10]} 2. c4 {[%emt 0:00:54]} e6 {[%emt 0:00:17]} 3. Nf3 {[%emt 0:01:15]} d5 {[%emt 0:00:28]} 4. Nc3 {[%emt 0:00:25]} c5 {[%emt 0:00:19]} 5. cxd5 {[%emt 0:00:54]} Nxd5 {[%emt 0:00:24]} 6. e4 {[%emt 0:00:49]} Nxc3 {[%emt 0:00:07]} 7. bxc3 {[%emt 0:00:03]} cxd4 {[%emt 0:00:06]} 8. cxd4 {[%emt 0:00:04]} Bb4+ {[%emt 0:00:05]} 9. Bd2 {[%emt 0:00:04]} Bxd2+ {[%emt 0:00:05]} 10. Qxd2 {[%emt 0:00:04]} O-O {[%emt 0:00:09]} 11. h4 {[%emt 0:00:45] D41: Queen's Gambit Declined: Semi-Tarrasch with 5 cxd5.} b6 {[%emt 0:03:57]} 12. Rd1 {[%emt 0:00:07]} Bb7 {[%emt 0:00:29]} 13. Bd3 {[%emt 0:00:07] The position is equal.} Nc6 {[%emt 0:10:58]} 14. Qe3 {[%emt 0:00:07] [#]} Qe7 $146 {[%emt 0:13:30]} ({Predecessor:} 14... Rc8 15. O-O Re8 16. Bb1 Na5 17. h5 Nc4 18. Qf4 h6 19. Rfe1 Qe7 20. e5 Red8 {½-½ (60) Stocek,J (2585)-Prusikin,M (2540) Warsaw 2005}) 15. O-O {[%emt 0:01:38]} Rad8 {[%emt 0:21:45]} 16. Rfe1 {[%emt 0:07:56]} Rfe8 {[%emt 0:12:20]} 17. h5 {[%emt 0:04:04]} h6 {[%emt 0:00:28]} 18. d5 {[%emt 0:16:35]} Nb4 {[%emt 0:07:21]} 19. Bb1 {[%emt 0:03:43]} e5 {[%emt 0:06:42]} 20. Qc3 {[%emt 0:23:30]} Qd6 {[%emt 0:02:19]} 21. a3 {[%emt 0:03:45]} Na6 {[%emt 0:00:13]} 22. Bd3 {[%emt 0:00:06]} Nc5 {[%emt 0:01:38]} 23. Bb5 {[%emt 0:00:51]} Re7 {[%emt 0:00:06]} 24. Nd2 {[%emt 0:01:34]} Bc8 {[%emt 0:03:35]} 25. Re3 {[%emt 0:04:01]} Qf6 {[%emt 0:02:02]} 26. Be2 {[%emt 0:03:48]} Qh4 {[%emt 0:02:40]} 27. g3 {[%emt 0:03:35]} Qh3 {[%emt 0:05:08]} (27... Qg5 $5 {[%cal Rc8g4]}) 28. Nf1 {[%emt 0:14:08]} (28. Nc4 $5 {[%cal Rc4e5]}) 28... Bg4 {[%emt 0:03:32]} 29. f3 $1 {[%emt 0:00:12]} Bd7 {[%emt 0:00:57]} 30. g4 {[%emt 0:03:58] Hoping for Qe1.} Qh4 {[%emt 0:00:36]} 31. Kg2 {[%emt 0:01:04]} Rc8 {[%emt 0:01:16][%cal Oc5e4] White must now prevent ...Nxe4!} 32. Qd2 {[%emt 0:01:09]} (32. Qe1 $5 {[%cal Re1h4]} Qg5 33. Rc3 $11) 32... Ba4 {[%emt 0:02:23]} 33. Rb1 {[%emt 0:05:29]} Rec7 {[%emt 0:00:44]} 34. Ng3 {[%emt 0:00:48]} Qg5 $1 {[%emt 0:00:29][%cal Oc5b3] aiming for ...Nb3! Black is more active.} 35. Kf2 {[%emt 0:03:33] [#]} Bd7 {[%emt 0:00:50]} ({Black should try} 35... Na6 $1 $17 {[%mdl 512]} 36. Qe1 (36. Bxa6 $2 Rc2 $19) (36. Nf1 Rc2) 36... Rc2) 36. Rd1 {[%emt 0:02:22]} (36. Bd1 $15) 36... Qf4 {[%emt 0:01:14]} (36... Na4 $19 {Strongly threatening ...Rc2.} 37. Bd3 Nc3) 37. d6 $17 {[%emt 0:01:46]} Rc6 {[%emt 0:02:42]} (37... Rb7 $17 38. Kg2 Ba4) 38. Kg2 $2 {[%emt 0:00:35][%mdl 8192] Loses the game.} ({Only move:} 38. Rc3 $1 $15) 38... Na4 {[%emt 0:01:06]} (38... Ne6 $142 {Threatens to win with ...Rc2.} 39. Nf5 Rc2) 39. Rb3 $2 {[%emt 0:02:29]} (39. Nf1 {only move.}) 39... Rc2 $19 {[%emt 0:00:31]} 40. Qe1 {[%emt 0:00:14]} Nc5 {[%emt 0:03:41]} 41. Rb4 {[%emt 0:11:41]} (41. Rc3 Rxc3 42. Qxc3) 41... Ne6 {[%emt 0:01:23] Black is clearly winning.} 42. Nf5 {[%emt 0:01:45]} R8c3 {[%emt 0:01:46] Against Rb3. ( -> ...Qxf3+)} 43. Qf2 {[%emt 0:01:29]} Kh7 {[%emt 0:02:11]} 44. Ne7 {[%emt 0:01:19]} Qe3 {[%emt 0:02:01] Weighted Error Value: White=0.40/Black=0.17 (very precise)} 0-1

[Event "55th Biel Festival GMT Classical 2022"]
[Site "Biel"]
[Date "2022.07.19"]
[Round "4.2"]
[White "Kamsky, Gata"]
[Black "Naiditsch, Arkadij"]
[Result "1/2-1/2"]
[ECO "A48"]
[WhiteElo "2655"]
[BlackElo "2664"]
[Annotator "TA"]
[PlyCount "98"]
[EventDate "2022.07.14"]
[EventType "tourn"]
[EventCountry "SUI"]
[SourceTitle "playchess.com"]
[Source "ChessBase"]
[SourceQuality "1"]
[TimeControl "40/6000+30:20/3000+30:900+30"]

{[%evp 11,98,5,14,11,19,29,31,10,19,22,18,10,23,17,28,8,31,0,0,-32,-17,-26,-22,-39,-27,-26,-39,-60,-65,-74,-36,-55,-25,-35,-13,-31,-2,-20,0,-8,-8,-5,-8,-51,-66,-90,-99,-79,-37,-115,-42,-78,-54,-96,-82,-106,-11,-24,0,0,-28,-10,0,0,27,1,10,-27,0,0,0,0,0,0,0,0,0,0,0,0,0,0,0,0,0,0,0,0,0]} 1. d4 {[%emt 0:00:05]} Nf6 {[%emt 0:00:13]} 2. Nf3 {[%emt 0:00:05]} g6 {[%emt 0:00:40]} 3. c3 {[%emt 0:00:49]} Bg7 {[%emt 0:00:17]} 4. Bf4 {[%emt 0:00:07]} O-O {[%emt 0:01:01]} 5. Nbd2 {[%emt 0:00:06]} d6 {[%emt 0:00:23]} 6. e4 {[%emt 0:00:06]} Nc6 {[%emt 0:00:21]} 7. Be2 {[%emt 0:00:08] A48: 1 d4 Nf6 2 Nf3 g6: Torre, London and Colle Systems.} Nd7 {[%emt 0:00:17]} 8. O-O {[%emt 0:00:11]} e5 {[%emt 0:00:09]} 9. dxe5 {[%emt 0:00:07] White is slightly better.} dxe5 {[%emt 0:04:53]} 10. Bg5 {[%emt 0:01:40]} Qe8 {[%emt 0:01:34] [#]} 11. Re1 $146 {[%emt 0:00:06]} ({Predecessor:} 11. Qc2 Nc5 12. Be3 Ne6 13. Rad1 Qe7 14. Nb3 b6 15. Rd2 Bb7 16. Rfd1 Rad8 17. Rxd8 Rxd8 18. Rxd8+ Ncxd8 {0-1 (25) Pattyn,L-Cools,G (2333) Brasschaat 2006}) 11... a5 {[%emt 0:03:25]} 12. Bb5 {[%emt 0:19:23]} Nd8 {[%emt 0:01:41]} 13. a4 {[%emt 0:04:36]} Ne6 {[%emt 0:01:15]} 14. Bh4 {[%emt 0:00:23]} f6 {[%emt 0:06:45]} 15. b4 {[%emt 0:03:19]} Qe7 {[%emt 0:11:04]} 16. Qb3 {[%emt 0:01:07]} Kh8 {[%emt 0:05:18]} 17. Rad1 {[%emt 0:14:04]} g5 {[%emt 0:20:24]} 18. Bg3 $1 {[%emt 0:02:36]} Rd8 {[%emt 0:03:59]} 19. h3 {[%emt 0:01:44]} Bf8 {[%emt 0:11:14]} 20. Rb1 {[%emt 0:16:04]} Nb8 {[%emt 0:06:18]} (20... c6 $5 {[%cal Rc6b5]} 21. Bf1 axb4 22. cxb4 c5 $17) 21. Nc4 {[%emt 0:05:13]} axb4 {[%emt 0:02:15]} 22. cxb4 {[%emt 0:00:05]} Nc6 {[%emt 0:04:39]} 23. Bxc6 {[%emt 0:08:00]} bxc6 {[%emt 0:00:06]} 24. Qc2 {[%emt 0:12:39]} c5 {[%emt 0:06:29]} 25. Ne3 {[%emt 0:01:13]} c6 {[%emt 0:05:10] Against Nd5} 26. Nf5 {[%emt 0:00:09]} Qe8 {[%emt 0:02:13]} 27. bxc5 {[%emt 0:00:29]} (27. Nxe5 {is interesting.} fxe5 28. Bxe5+ Kg8 29. bxc5 Nxc5 30. Bf6) 27... Nxc5 {[%emt 0:00:24]} 28. Ra1 {[%emt 0:04:48]} Ba6 {[%emt 0:00:28]} 29. Nd2 {[%emt 0:02:17]} Qe6 {[%emt 0:01:27]} 30. a5 {[%emt 0:02:56] [#]} (30. h4 $15) 30... Nd3 {[%emt 0:00:40]} (30... h5 $1 $17 31. h4 g4) 31. Re3 {[%emt 0:01:47]} Rab8 {[%emt 0:01:32]} 32. Rb1 {[%emt 0:02:02]} Nb4 {[%emt 0:00:11]} 33. Qc1 {[%emt 0:01:26]} c5 {[%emt 0:00:48]} (33... Qd7 $17 34. Nf3 Nd3) 34. h4 $1 $11 {[%emt 0:00:09] And now hxg5 would win.} g4 {[%emt 0:00:35]} (34... Qd7 $5 {[%cal Rd7d2]} 35. hxg5 Qxd2 36. Qxd2 Rxd2 37. gxf6 Kg8 38. Bxe5 Re8 $17) 35. h5 {[%emt 0:00:16]} Bd3 {[%emt 0:02:17]} 36. Rb2 {[%emt 0:04:00]} c4 {[%emt 0:00:16] Threatens to win with ...Rbc8.} 37. Bh4 $1 {[%emt 0:00:03]} Nc6 {[%emt 0:01:54]} 38. Rxb8 {[%emt 0:01:10]} Rxb8 {[%emt 0:00:09]} 39. a6 {[%emt 0:00:24][%cal Ba5a6,Ba6a7][%mdl 32]} Nd4 {[%emt 0:03:03]} 40. a7 {[%emt 0:01:59] The position is equal.} Ra8 {[%emt 0:00:20]} 41. Nxd4 {[%emt 0:51:37]} exd4 {[%emt 0:50:13]} 42. Rxd3 {[%emt 0:00:06]} cxd3 {[%emt 0:00:13]} 43. Qc7 {[%emt 0:00:13] Strongly threatening Qb7.} Qe7 $1 {[%emt 0:00:00]} 44. Qc6 {[%emt 0:00:00][%csl LRa8,LRf6]} ({Don't blunder} 44. Qxe7 $2 Bxe7 45. e5 Rxa7 $19) 44... Qxa7 {[%emt 0:00:09] Hoping for ...Bg7.} 45. Bxf6+ {[%emt 0:00:00]} Bg7 {[%emt 0:00:07] ...Rf8 is the strong threat.} 46. h6 $1 {[%emt 0:00:00][%mdl 64] [#] Pin} Bxf6 {[%emt 0:00:08]} 47. Qxf6+ {[%emt 0:00:00]} Kg8 {[%emt 0:00:05]} 48. Qg5+ {[%emt 0:00:00]} Kf8 {[%emt 0:00:40]} 49. Qf6+ {[%emt 0:00:00]} Kg8 {[%emt 0:00:07] Weighted Error Value: White=0.10 (very precise) /Black=0.12 (very precise)} 1/2-1/2

[Event "55th Biel Festival GMT Classical 2022"]
[Site "Biel"]
[Date "2022.07.19"]
[Round "4.3"]
[White "Abdusattorov, Nodirbek"]
[Black "Salem, A.R. Saleh"]
[Result "1-0"]
[ECO "D36"]
[WhiteElo "2688"]
[BlackElo "2684"]
[Annotator "TA"]
[PlyCount "77"]
[EventDate "2022.07.14"]
[EventType "tourn"]
[EventCountry "SUI"]
[SourceTitle "playchess.com"]
[Source "ChessBase"]
[SourceQuality "1"]
[TimeControl "40/6000+30:20/3000+30:900+30"]

{[%evp 21,77,23,14,21,25,16,9,6,10,0,0,7,0,-8,0,-4,22,6,4,12,17,14,65,81,74,81,120,113,169,156,164,153,157,152,210,217,217,213,271,210,195,159,198,198,191,147,195,106,129,118,321,320,918,907,914,864,794,745]} 1. d4 {[%emt 0:01:03]} Nf6 {[%emt 0:02:15]} 2. c4 {[%emt 0:00:06]} e6 {[%emt 0:00:04]} 3. Nc3 {[%emt 0:00:09]} d5 {[%emt 0:00:07]} 4. cxd5 {[%emt 0:00:08]} exd5 {[%emt 0:00:02]} 5. Bg5 {[%emt 0:00:20]} c6 {[%emt 0:00:07]} 6. e3 {[%emt 0:00:20]} h6 {[%emt 0:00:06]} 7. Bh4 {[%emt 0:00:09]} Be7 {[%emt 0:00:04]} 8. Bd3 {[%emt 0:00:48]} O-O {[%emt 0:00:08]} 9. Nge2 {[%emt 0:00:23][%cal Bg1e2,Be2c1,Bc1b3,Bb3d2][%mdl 32]} Re8 {[%emt 0:00:07]} 10. O-O {[%emt 0:01:21]} Nbd7 {[%emt 0:02:07]} 11. Qc2 {[%emt 0:02:14]} Nh5 {[%emt 0:00:31]} 12. Bxe7 {[%emt 0:00:14] D36: Queen's Gambit Declined: Exchange Variation: Main line (5 Bg5 c6 6 Qc2).} Qxe7 {[%emt 0:00:05]} 13. Rad1 $5 {[%emt 0:00:40][%mdl 4] An interesting side line.} Ndf6 {[%emt 0:01:49] [#]} 14. Nc1 $146 {[%emt 0:04:45] The position is equal.} ({Predecessor:} 14. Bf5 Be6 15. Rfe1 Rad8 16. a3 Bxf5 17. Qxf5 g6 18. Qh3 Nh7 19. Ng3 Ng5 20. Qg4 Nxg3 21. Qxg3 {½-½ (27) Sahil,T (2224)-Djoric,D (2298) Zadar 2018}) 14... Qd6 {[%emt 0:11:05]} 15. Rfe1 {[%emt 0:03:40]} Ng4 {[%emt 0:12:29]} 16. g3 $1 {[%emt 0:00:07]} Nhf6 $1 {[%emt 0:00:07]} 17. Re2 {[%emt 0:23:06]} Qd7 {[%emt 0:09:29][%cal Og4h2]} 18. Ree1 $1 {[%emt 0:17:55]} Qd6 {[%emt 0:10:32]} 19. Nb3 {[%emt 0:04:44]} h5 {[%emt 0:04:13]} 20. Nd2 {[%emt 0:03:46]} h4 {[%emt 0:09:03] Hoping for ...hxg3.} 21. e4 {[%emt 0:01:13][%cal Be3e4,Be4e5][%mdl 32]} Nxf2 {[%emt 0:16:42]} 22. Kxf2 $14 {[%emt 0:02:08]} Ng4+ {[%emt 0:11:27]} 23. Kg2 {[%emt 0:00:45]} Nxh2 {[%emt 0:00:35]} 24. Nf1 {[%emt 0:04:38]} (24. Kxh2 $6 Qxg3+ 25. Kh1 Qh3+ 26. Kg1 Qg3+ 27. Kh1 Qh3+ 28. Kg1 Qg3+ 29. Kh1 $11) 24... Nxf1 {[%emt 0:05:39]} (24... hxg3 $16 25. Nxh2 (25. Nxg3 Qh6 $11) 25... gxh2) 25. e5 $36 {[%emt 0:01:22][%mdl 2048] Keeping Black busy.} Qe6 {[%emt 0:02:02]} 26. Rxf1 {[%emt 0:02:46]} Qh3+ {[%emt 0:00:17]} 27. Kg1 {[%emt 0:00:08]} Bg4 {[%emt 0:05:49] [#]} (27... hxg3 $16 {is a better defense.} 28. Rd2 Qh4) 28. Rd2 $1 {[%emt 0:03:40]} hxg3 {[%emt 0:01:20] And now ...Re6 would win.} 29. Bf5 {[%emt 0:02:00] Inhibits Re6.} Re7 {[%emt 0:04:34]} 30. Bxg4 {[%emt 0:00:44]} Qxg4 {[%emt 0:00:02]} 31. Kg2 {[%emt 0:00:49]} Re6 {[%emt 0:01:18]} (31... Qh4 $2 32. Rh1 Qxh1+ 33. Kxh1 $18) 32. Rh1 {[%emt 0:01:43] Black must now prevent Qh7+.} ({Don't play} 32. Qf5 Qxf5 33. Rxf5 Rh6) 32... Rg6 {[%emt 0:01:04]} 33. Rh3 {[%emt 0:04:11]} Re8 {[%emt 0:00:08]} (33... Qf4 $16) 34. Rd1 {[%emt 0:02:13]} (34. Ne2 $18) 34... f6 $16 {[%emt 0:00:29] [#]} 35. Ne2 $1 {[%emt 0:10:43][%cal Rh3g3]} Rg5 $2 {[%emt 0:00:06] A mistake that costs the game.} (35... Rh6 $16 {was worth a try.} 36. Rxh6 (36. Rdh1 Rxh3 37. Rxh3 fxe5 $11) 36... gxh6) 36. Rf1 $18 {[%emt 0:01:04][%cal Bd1f1,Bf1f4,Bf4g4][%mdl 32] Threatens to win with Rf4. The board is on fire.} ({Weaker is} 36. Rxg3 Qf5 37. Qxf5 Rxf5 $16) ({Stronger than} 36. Nxg3 fxe5 37. Rf1 Rg6 $11) 36... Re6 $2 {[%emt 0:00:57]} (36... Qe4+ 37. Qxe4 dxe4 38. exf6 Rf8 39. fxg7 Rxf1 40. Kxf1 g2+ 41. Kg1 Rxg7) 37. Rf4 {[%emt 0:01:26] White is clearly winning.} Qxh3+ {[%emt 0:00:13]} 38. Kxh3 {[%emt 0:00:00]} fxe5 {[%emt 0:00:43]} 39. Rg4 {[%emt 0:00:05] Weighted Error Value: White=0.12 (very precise) /Black=0.24 (precise)} 1-0